bitfinex/quotes_SOLUSD_20250306
["timestamp","ask_amount","ask_price","bid_price","bid_amount"]
[1741287318970,0.28432314,143.63,143.58,0.033]
[1741287319139,7.24682314,143.63,143.58,0.033]
[1741287319850,24.65262314,143.63,143.58,0.033]
[1741287320266,7.24682314,143.63,143.58,0.033]
[1741287320461,7.24682314,143.63,143.58,312.033]
[1741287320948,6.9625,143.63,143.59,0.14216157]
[1741287321772,6.9618,143.64,143.59,7.10616157]
[1741287321968,0.03,143.66,143.59,114.72298542]
[1741287322175,0.03,143.66,143.61,0.14216157]
[1741287322846,6.9908,143.66,143.61,0.14216157]
[1741287323243,0.03,143.66,143.62,6.9628]
[1741287323465,0.03,143.66,143.64,1.5664]
[1741287323765,0.03,143.66,143.65,0.14216157]
[1741287324556,0.03,143.66,143.64,1.5664]
[1741287324754,0.03,143.66,143.63,0.14216157]
[1741287324973,0.03,143.66,143.63,312.14216157]
[1741287325482,0.03,143.66,143.62,81.1]
[1741287325687,0.03,143.66,143.61,0.14216157]
[1741287326198,0.03,143.66,143.61,25.4800946]
[1741287326695,0.03,143.66,143.63,0.14216157]
[1741287327377,0.03,143.66,143.65,0.14216157]
[1741287327586,0.03,143.66,143.65,88.20346157]
[1741287327994,0.03,143.66,143.65,106.5781946]
[1741287328171,0.03,143.66,143.65,126.85024346]
[1741287328481,0.03,143.66,143.65,576.65024346]
[1741287340096,0.03,143.74,143.67,0.14216157]
[1741287340296,0.03,143.74,143.67,81.24216157]
[1741287341587,0.03,143.74,143.68,6.9599]
[1741287342406,0.03,143.74,143.69,8.26332577]
[1741287342708,0.03,143.74,143.69,20.00388378]
[1741287343908,0.03,143.74,143.7,6.9589]
[1741287345512,0.03,143.74,143.72,312.0]
[1741287345814,0.03,143.74,143.73,7.09956157]
[1741287347111,0.03,143.74,143.71,6.9584]
[1741287347313,0.03,143.74,143.72,0.14216157]
[1741287347991,0.03,143.74,143.73,25.44605681]
[1741287348194,0.03,143.74,143.73,44.09570567]
[1741287348814,0.03,143.74,143.73,25.74921043]
[1741287348993,0.03,143.74,143.73,337.74921043]
[1741287349389,0.03,143.74,143.73,356.09570567]
[1741287350025,0.03,143.74,143.73,0.14216157]
[1741287350189,0.03,143.74,143.72,81.1]
[1741287350595,0.03,143.74,143.73,0.14216157]
[1741287350823,0.03,143.74,143.72,81.1]
[1741287351023,0.03,143.74,143.73,0.14216157]
[1741287351721,0.03,143.74,143.7,81.1]
[1741287351925,0.03,143.74,143.67,6.96]
[1741287352133,0.03,143.74,143.68,0.14216157]
[1741287352331,6.6079,143.74,143.68,0.14216157]
[1741287353233,6.6079,143.74,143.68,312.14216157]
[1741287353596,13.565,143.74,143.68,312.14216157]
[1741287353795,13.565,143.74,143.68,319.10186157]
[1741287354132,13.5649,143.74,143.68,312.14216157]
[1741287354505,0.28432314,143.73,143.68,312.0]
[1741287355432,6.9579,143.72,143.68,312.0]
[1741287355824,6.9579,143.72,143.67,0.14216157]
[1741287357847,24.3528,143.72,143.67,0.14216157]
[1741287358441,0.28432314,143.71,143.65,0.14216157]
[1741287358606,82.28432314,143.71,143.62,6.66]
[1741287358807,18.933972,143.69,143.62,312.0]
[1741287359418,6.9599,143.68,143.62,312.0]
[1741287359620,0.28432314,143.67,143.62,312.0]
[1741287359935,88.9599,143.68,143.63,0.14216157]
[1741287360134,82.0,143.68,143.63,0.14216157]
[1741287360643,82.0,143.68,143.63,18.48865681]
[1741287360945,82.0,143.68,143.65,0.14216157]
[1741287361256,14.5568,143.7,143.65,0.14216157]
[1741287361613,6.0726,143.7,143.65,0.14216157]
[1741287361923,95.0798,143.73,143.65,106.54985681]
[1741287362240,13.0798,143.73,143.67,0.14216157]
[1741287362547,6.1222,143.73,143.67,99.58865681]
[1741287363432,6.1222,143.73,143.68,312.0]
[1741287363625,13.0798,143.73,143.68,312.0]
[1741287363845,0.28432314,143.72,143.67,81.1]
[1741287364039,13.0798,143.73,143.68,0.14216157]
[1741287365451,30.4735,143.73,143.68,0.14216157]
[1741287366123,0.28432314,143.72,143.67,81.1]
[1741287366526,18.933972,143.72,143.64,87.76]
[1741287366725,0.28432314,143.7,143.64,318.66]
[1741287366931,0.28432314,143.7,143.65,0.14216157]
[1741287368157,6.9594,143.69,143.65,0.14216157]
[1741287368335,88.9585,143.71,143.65,7.10336157]
[1741287369047,88.9585,143.71,143.64,7.10376157]
[1741287371234,82.0,143.71,143.66,0.14216157]
[1741287371559,88.9585,143.71,143.68,0.14216157]
[1741287371747,6.9585,143.71,143.68,0.14216157]
[1741287371941,6.958,143.72,143.66,0.14216157]
[1741287372539,6.1222,143.73,143.66,81.24216157]
[1741287373033,13.0799,143.73,143.68,0.14216157]
[1741287375049,13.0799,143.73,143.68,312.14216157]
[1741287375443,30.4736,143.73,143.68,312.14216157]
[1741287376255,30.5036,143.73,143.68,312.14216157]
[1741287376449,13.1099,143.73,143.68,312.14216157]
[1741287376972,82.28432314,143.72,143.63,0.033]
[1741287377141,0.28432314,143.7,143.63,0.17516157]
[1741287377653,0.28432314,143.7,143.63,7.13736157]
[1741287377860,0.28432314,143.7,143.63,0.17516157]
[1741287378449,0.28432314,143.7,143.63,0.033]
[1741287378650,0.28432314,143.68,143.63,0.033]
[1741287379070,6.9603,143.67,143.63,0.033]
[1741287381574,0.28432314,143.68,143.63,0.17516157]
[1741287381754,7.24422314,143.68,143.63,0.17516157]
[1741287382071,89.6518,143.69,143.63,0.17516157]
[1741287382279,96.6113,143.69,143.63,0.033]
[1741287382449,0.28432314,143.68,143.63,0.033]
[1741287382954,0.28432314,143.66,143.63,0.033]
[1741287384275,6.9613,143.65,143.63,0.033]
[1741287384578,6.657,143.64,143.63,0.033]
[1741287385361,6.9609,143.66,143.63,0.033]
[1741287386153,0.28432314,143.65,143.63,0.033]
[1741287386354,6.9618,143.64,143.63,0.033]
[1741287386960,8.76302314,143.64,143.63,0.033]
[1741287387164,25.058972,143.63,143.62,0.033]
[1741287387354,26.08210157,143.63,143.62,0.033]
[1741287387556,6.40932314,143.63,143.62,0.033]
[1741287388375,13.37162314,143.63,143.62,0.033]
[1741287388677,18.81415244,143.63,143.62,0.033]
[1741287388879,18.64964886,143.62,143.58,0.033]
[1741287389070,6.659,143.6,143.58,0.033]
[1741287389978,0.28432314,143.59,143.58,0.033]
[1741287390385,6.659,143.6,143.58,0.033]
[1741287390582,0.28432314,143.59,143.56,0.033]
[1741287392573,6.9647,143.58,143.56,0.033]
[1741287392875,7.24872314,143.59,143.56,0.033]
[1741287393479,13.6228,143.6,143.56,0.033]
[1741287395686,95.6228,143.6,143.56,0.033]
[1741287396679,0.28432314,143.59,143.56,0.033]
[1741287397689,18.933972,143.59,143.56,0.033]
[1741287397982,20.28432314,143.57,143.56,0.033]
[1741287398685,27.24952314,143.57,143.56,0.033]
[1741287403493,27.24952314,143.57,143.52,0.033]
[1741287403494,0.28432314,143.55,143.52,0.033]
[1741287403679,0.28432314,143.53,143.52,0.0001]
[1741287403877,0.28432314,143.53,143.51,0.033]
[1741287403878,33.383172,143.53,143.48,0.033]
[1741287404080,18.933972,143.51,143.45,0.033]
[1741287404279,0.28432314,143.49,143.45,0.033]
[1741287404812,6.9696,143.48,143.45,0.033]
[1741287405211,82.0,143.5,143.45,0.033]
[1741287405369,88.9687,143.5,143.45,0.033]
[1741287405792,0.28432314,143.49,143.45,0.033]
[1741287406400,0.28432314,143.52,143.45,0.033]
[1741287406594,95.1465,143.53,143.46,0.14216157]
[1741287406789,82.0,143.53,143.48,0.14216157]
[1741287407098,14.6569,143.57,143.5,0.14216157]
[1741287407495,6.1435,143.57,143.5,0.14216157]
[1741287407881,92.49474939,143.59,143.5,18.48865681]
[1741287408190,82.03,143.59,143.52,0.14216157]
[1741287408501,88.9943,143.59,143.52,0.14216157]
[1741287408885,88.9943,143.59,143.52,7.10946157]
[1741287409481,88.9943,143.59,143.52,319.10946157]
[1741287411805,111.90976356,143.59,143.52,319.10946157]
[1741287413504,22.94546356,143.59,143.52,400.20946157]
[1741287413680,22.94546356,143.59,143.54,18.34649524]
[1741287413879,22.94546356,143.59,143.55,0.14216157]
[1741287414308,0.03,143.59,143.55,99.58865681]
[1741287416584,0.03,143.59,143.56,312.0]
[1741287418628,0.03,143.59,143.53,0.14216157]
[1741287420223,0.03,143.59,143.56,0.14216157]
[1741287420789,0.03,143.59,143.55,0.14216157]
[1741287421415,0.03,143.59,143.57,0.14216157]
[1741287421992,0.03,143.59,143.55,0.14216157]
[1741287423838,0.03,143.59,143.55,7.10826157]
[1741287424035,0.03,143.59,143.56,18.64964886]
[1741287424201,0.03,143.59,143.58,38.71560567]
[1741287424724,0.03,143.59,143.58,257.89992881]
[1741287424923,0.03,143.7,143.62,0.14216157]
[1741287425133,6.9594,143.69,143.63,0.14216157]
[1741287425517,0.28432314,143.68,143.63,0.14216157]
[1741287425719,6.1528,143.67,143.62,87.76]
[1741287425927,6.1528,143.67,143.6,0.14216157]
[1741287426126,82.0,143.68,143.6,38.60024291]
[1741287426437,82.0,143.68,143.62,0.14216157]
[1741287426803,82.0,143.68,143.61,0.14216157]
[1741287427719,82.0,143.68,143.63,18.48865681]
[1741287427901,88.9599,143.68,143.63,6.80216157]
[1741287428605,88.9599,143.68,143.63,318.80216157]
[1741287429839,0.28432314,143.67,143.6,0.14216157]
[1741287431149,0.28432314,143.67,143.59,81.1]
[1741287431150,82.28432314,143.67,143.59,81.1]
[1741287431357,0.28432314,143.65,143.58,1.5773]
[1741287431515,0.28432314,143.62,143.54,89.4133]
[1741287431851,24.3715,143.61,143.54,89.4133]
[1741287432013,24.3715,143.61,143.55,0.14216157]
[1741287432738,0.28432314,143.6,143.55,312.0]
[1741287433047,0.28432314,143.6,143.52,87.76]
[1741287433233,0.28432314,143.6,143.53,0.14216157]
[1741287433732,18.933972,143.58,143.5,1.6029]
[1741287433924,0.28432314,143.56,143.48,81.1]
[1741287434119,6.71012314,143.56,143.48,81.1]
[1741287434323,6.71012314,143.56,143.49,0.14216157]
[1741287435444,6.71012314,143.56,143.48,81.1]
[1741287435646,6.71012314,143.56,143.49,0.14216157]
[1741287435831,6.9662,143.55,143.49,312.14216157]
[1741287436220,6.71012314,143.56,143.49,312.14216157]
[1741287436863,13.67602314,143.56,143.49,312.14216157]
[1741287437221,17.09223396,143.56,143.49,312.14216157]
[1741287438133,17.09223396,143.56,143.49,319.11116157]
[1741287438452,6.71012314,143.56,143.49,319.11116157]
[1741287439045,13.67592314,143.56,143.49,319.11116157]
[1741287440755,6.71012314,143.56,143.49,319.11116157]
[1741287441057,6.71012314,143.56,143.49,117.63818423]
[1741287441058,6.4258,143.56,143.49,117.63818423]
[1741287441239,6.9649,143.58,143.51,0.14216157]
[1741287442756,6.9649,143.58,143.53,0.14216157]
[1741287443132,6.9649,143.58,143.51,0.14216157]
[1741287444023,6.9649,143.58,143.53,312.0]
[1741287444661,88.63972314,143.59,143.54,0.14216157]
[1741287444844,95.60402314,143.59,143.54,0.14216157]
[1741287445563,0.28432314,143.58,143.53,312.0]
[1741287445855,0.28432314,143.58,143.52,0.14216157]
[1741287446050,19.95710157,143.58,143.51,81.1]
[1741287446259,0.28432314,143.56,143.49,0.14216157]
[1741287446959,0.28432314,143.56,143.49,0.17516157]
[1741287447553,82.28432314,143.56,143.49,0.17516157]
[1741287447755,83.30745271,143.56,143.49,0.033]
[1741287447929,82.28432314,143.56,143.49,0.17516157]
[1741287448258,0.28432314,143.54,143.49,0.17516157]
[1741287448958,88.9662,143.55,143.49,341.60218423]
[1741287449165,88.9662,143.55,143.49,312.17516157]
[1741287449335,0.28432314,143.54,143.49,312.17516157]
[1741287449666,6.0302,143.53,143.49,0.033]
[1741287450346,6.9676,143.52,143.49,0.033]
[1741287451461,24.3867,143.52,143.49,0.033]
[1741287452957,0.28432314,143.51,143.49,0.033]
[1741287454267,82.28432314,143.5,143.49,0.033]
[1741287454474,89.25292314,143.5,143.49,0.033]
[1741287456368,89.6876,143.53,143.49,0.033]
[1741287456573,6.9676,143.52,143.49,0.033]
[1741287456739,0.14216157,143.51,143.49,0.033]
[1741287456940,82.0,143.5,143.49,0.033]
[1741287457240,100.933972,143.5,143.49,0.033]
[1741287457452,18.933972,143.49,143.47,0.03]
[1741287457751,7.16892957,143.48,143.47,0.03]
[1741287457932,108.10290157,143.48,143.47,0.03]
[1741287458776,115.07250157,143.48,143.47,0.03]
[1741287459675,132.49650157,143.48,143.45,0.033]
[1741287460240,20.28432314,143.46,143.45,0.033]
[1741287461078,27.25482314,143.46,143.45,0.033]
[1741287461382,109.25482314,143.46,143.45,0.033]
[1741287461556,111.84735271,143.46,143.45,0.033]
[1741287461759,130.49700157,143.46,143.45,0.033]
[1741287462483,130.49700157,143.46,143.45,0.0001]
[1741287463052,18.933972,143.45,143.44,0.0001]
[1741287463568,18.933972,143.45,143.43,1.52e-05]
[1741287463753,19.95710157,143.44,143.43,1.52e-05]
[1741287465167,26.92860157,143.44,143.43,1.52e-05]
[1741287465557,7.25582314,143.44,143.43,1.52e-05]
[1741287466070,8.27895271,143.44,143.43,1.52e-05]
[1741287467660,14.92975271,143.44,143.43,1.52e-05]
[1741287468358,35.980847,143.44,143.43,1.52e-05]
[1741287468773,14.92975271,143.44,143.43,1.52e-05]
[1741287469978,14.96275271,143.44,143.43,1.52e-05]
[1741287473480,13.79746157,143.44,143.43,1.52e-05]
[1741287473780,13.93962314,143.44,143.43,1.52e-05]
[1741287474492,7.0045,143.44,143.43,1.52e-05]
[1741287475079,7.28882314,143.44,143.43,1.52e-05]
[1741287475267,20.0,143.41,143.33,1.6007]
[1741287475469,0.28432314,143.4,143.33,1.6007]
[1741287475689,0.28432314,143.4,143.34,0.17516157]
[1741287475873,26.66,143.41,143.35,18.41822132]
[1741287476073,26.66,143.41,143.37,0.14216157]
[1741287476297,20.0,143.41,143.37,0.14216157]
[1741287476606,6.9735,143.4,143.35,0.14216157]
[1741287476773,6.9735,143.4,143.35,18.56038289]
[1741287477107,26.9731,143.41,143.35,18.56038289]
[1741287477596,26.9731,143.41,143.38,0.14216157]
[1741287477986,26.9731,143.41,143.35,0.14216157]
[1741287478300,44.4056,143.41,143.35,0.14216157]
[1741287478502,0.28432314,143.4,143.34,81.133]
[1741287478708,0.28432314,143.4,143.34,0.033]
[1741287479002,0.28432314,143.4,143.34,0.17516157]
[1741287480783,6.9739,143.39,143.34,0.17516157]
[1741287480990,108.9732,143.41,143.35,330.41822132]
[1741287481370,108.9732,143.41,143.35,312.0]
[1741287481574,108.9732,143.41,143.34,25.56948289]
[1741287481822,26.9732,143.41,143.34,88.25126157]
[1741287483109,26.9732,143.41,143.35,18.41822132]
[1741287483300,6.9727,143.42,143.37,0.14216157]
[1741287484298,88.9722,143.43,143.37,0.14216157]
[1741287484495,13.6646,143.44,143.4,0.14216157]
[1741287484708,0.033,143.44,143.4,0.14216157]
[1741287485691,0.033,143.44,143.38,25.53468289]
[1741287485884,0.033,143.44,143.38,0.14216157]
[1741287486597,0.033,143.44,143.39,18.41822132]
[1741287486909,0.033,143.44,143.42,0.14216157]
[1741287487117,0.033,143.44,143.43,0.14216157]
[1741287487978,0.033,143.44,143.43,312.14216157]
[1741287488385,0.033,143.44,143.43,0.14216157]
[1741287490696,0.033,143.44,143.41,0.14216157]
[1741287491406,0.033,143.44,143.41,312.14216157]
[1741287492213,0.033,143.44,143.41,337.53328289]
[1741287492386,0.033,143.44,143.41,25.53328289]
[1741287492910,0.033,143.44,143.41,18.56038289]
[1741287493086,0.033,143.44,143.41,0.14216157]
[1741287494405,0.033,143.44,143.4,81.1]
[1741287494714,0.033,143.44,143.39,0.14216157]
[1741287495403,0.033,143.44,143.39,312.14216157]
[1741287497221,0.033,143.44,143.39,319.11596157]
[1741287497396,0.033,143.44,143.4,18.41822132]
[1741287497715,0.033,143.44,143.41,0.14216157]
[1741287498097,0.033,143.44,143.39,38.5317801]
[1741287498098,0.033,143.44,143.4,0.14216157]
[1741287498788,0.033,143.44,143.39,0.14216157]
[1741287500209,0.033,143.44,143.39,44.18393175]
[1741287500507,0.033,143.44,143.42,0.14216157]
[1741287500890,0.033,143.44,143.4,0.14216157]
[1741287501113,0.033,143.44,143.4,18.56038289]
[1741287501302,0.033,143.44,143.4,0.14216157]
[1741287501895,0.033,143.44,143.4,18.56038289]
[1741287502102,0.033,143.44,143.42,0.14216157]
[1741287502804,0.033,143.44,143.41,0.14216157]
[1741287503802,0.033,143.44,143.4,0.14216157]
[1741287504006,0.033,143.44,143.43,0.14216157]
[1741287506898,0.033,143.44,143.43,45.64572671]
[1741287507406,0.033,143.44,143.43,126.74572671]
[1741287507618,0.033,143.44,143.43,81.24216157]
[1741287509810,0.033,143.44,143.43,420.32745202]
[1741287510015,0.033,143.44,143.43,575.08203175]
[1741287511999,0.033,143.44,143.43,593.78457621]
[1741287512202,0.033,143.44,143.43,575.36635489]
[1741287512398,0.033,143.44,143.43,549.69181043]
[1741287513022,0.033,143.44,143.43,393.24216157]
[1741287514408,0.033,143.44,143.43,418.86381043]
[1741287514716,0.033,143.44,143.43,437.28203175]
[1741287514922,0.033,143.44,143.43,411.89181043]
[1741287515904,0.033,143.44,143.43,437.28203175]
[1741287516892,0.033,143.44,143.43,443.92203175]
[1741287519809,0.033,143.44,143.43,418.81613357]
[1741287520011,0.033,143.44,143.43,437.23435489]
[1741287520401,0.033,143.44,143.43,436.95003175]
[1741287520625,0.033,143.44,143.43,443.92203175]
[1741287521507,0.033,143.44,143.43,436.95003175]
[1741287521706,0.033,143.44,143.43,418.53181043]
[1741287522317,0.033,143.44,143.43,393.24216157]
[1741287522517,0.033,143.44,143.43,81.1]
[1741287522924,0.033,143.44,143.43,81.24216157]
[1741287523103,0.033,143.44,143.39,106.38964886]
[1741287523299,0.033,143.44,143.39,81.1]
[1741287523724,0.033,143.44,143.4,0.14216157]
[1741287524529,0.033,143.44,143.39,81.1]
[1741287525031,0.033,143.44,143.4,0.14216157]
[1741287525215,0.033,143.44,143.39,81.1]
[1741287525403,0.033,143.44,143.4,0.14216157]
[1741287525606,0.033,143.44,143.4,312.14216157]
[1741287526023,20.0,143.43,143.4,312.14216157]
[1741287526334,20.0,143.43,143.38,0.14216157]
[1741287526520,20.0,143.43,143.37,81.1]
[1741287527030,6.3937,143.42,143.38,0.14216157]
[1741287527216,6.973,143.41,143.38,0.14216157]
[1741287529034,13.3663,143.42,143.38,0.14216157]
[1741287529231,13.3663,143.42,143.38,312.14216157]
[1741287529529,6.3937,143.42,143.38,319.11636157]
[1741287529733,0.033,143.44,143.4,0.14216157]
[1741287530109,7.0046,143.44,143.4,0.14216157]
[1741287530813,24.4334,143.44,143.39,81.1]
[1741287532334,24.4334,143.44,143.36,0.14216157]
[1741287532515,24.4334,143.44,143.36,81.24216157]
[1741287532717,24.4334,143.44,143.37,312.0]
[1741287533435,20.0,143.41,143.37,312.0]
[1741287534432,24.4334,143.44,143.38,0.14216157]
[1741287534634,7.0046,143.44,143.38,118.31990046]
[1741287534930,20.0,143.42,143.38,81.24216157]
[1741287536121,20.0,143.42,143.38,88.21646157]
[1741287536319,0.033,143.44,143.38,106.6445516]
[1741287536535,20.0,143.42,143.38,81.24216157]
[1741287537118,7.0046,143.44,143.38,88.21656157]
[1741287537754,7.0046,143.44,143.4,0.14216157]
[1741287540318,0.033,143.43,143.39,7.11606157]
[1741287540718,0.033,143.43,143.39,0.14216157]
[1741287541021,20.033,143.43,143.4,312.0]
[1741287541219,27.0051,143.43,143.4,312.0]
[1741287541755,27.0051,143.43,143.39,0.14216157]
[1741287541952,44.4352,143.43,143.38,81.13]
[1741287542950,7.7095,143.42,143.38,81.13]
[1741287543117,6.973,143.41,143.38,81.13]
[1741287543325,6.973,143.41,143.38,0.03]
[1741287544053,20.0,143.39,143.38,0.03]
[1741287545259,26.9739,143.39,143.38,0.03]
[1741287545457,33.40362314,143.39,143.38,0.03]
[1741287545666,0.28432314,143.38,143.34,0.033]
[1741287545818,1.593,143.37,143.34,0.033]
[1741287547251,6.9754,143.36,143.34,0.033]
[1741287548056,8.568,143.37,143.34,0.033]
[1741287548649,82.0,143.38,143.34,0.033]
[1741287549221,88.9745,143.38,143.34,0.033]
[1741287550150,24.4106,143.38,143.34,0.033]
[1741287553895,6.9745,143.38,143.34,0.033]
[1741287554587,33.1195,143.39,143.34,0.033]
[1741287555505,26.1454,143.39,143.34,0.033]
[1741287555666,26.1454,143.39,143.34,0.17516157]
[1741287555990,6.1454,143.39,143.35,6.9759]
[1741287556698,14.9398,143.43,143.36,37.24055484]
[1741287556992,14.9398,143.43,143.36,430.34055484]
[1741287557201,172.74,143.47,143.36,430.34055484]
[1741287557202,49.79588582,143.58,143.46,0.14216157]
[1741287557495,42.83108582,143.58,143.54,0.14216157]
[1741287557891,42.83108582,143.58,143.52,6.64]
[1741287558188,42.83108582,143.58,143.53,0.14216157]
[1741287559389,42.83108582,143.58,143.53,18.59090598]
[1741287559563,42.83108582,143.58,143.54,18.59090598]
[1741287559978,0.033,143.58,143.55,0.14216157]
[1741287560496,0.033,143.58,143.55,312.14216157]
[1741287560992,0.033,143.58,143.55,330.59090598]
[1741287561308,0.033,143.58,143.57,18.59090598]
[1741287561463,0.033,143.58,143.57,0.14216157]
[1741287563185,0.033,143.58,143.55,81.1]
[1741287563376,0.033,143.58,143.55,0.14216157]
[1741287563703,0.033,143.58,143.53,99.54874441]
[1741287563878,0.033,143.58,143.54,0.14216157]
[1741287564265,0.033,143.58,143.54,312.14216157]
[1741287564671,0.033,143.58,143.54,330.59090598]
[1741287565600,0.033,143.58,143.55,18.44874441]
[1741287566790,0.033,143.58,143.57,18.44874441]
[1741287567000,0.033,143.58,143.57,18.59090598]
[1741287567602,0.033,143.58,143.57,99.69090598]
[1741287568185,0.033,143.58,143.57,81.24216157]
[1741287570268,0.033,143.58,143.57,99.69090598]
[1741287571505,0.033,143.58,143.57,81.24216157]
[1741287572213,0.033,143.58,143.57,99.69090598]
[1741287572689,0.033,143.58,143.57,81.24216157]
[1741287579315,0.033,143.58,143.57,99.69090598]
[1741287579490,0.033,143.58,143.57,81.24216157]
[1741287582111,0.033,143.58,143.57,157.85344282]
[1741287582290,0.033,143.58,143.57,208.59292239]
[1741287582604,0.03,143.59,143.58,19.07613357]
[1741287582781,0.03,143.59,143.58,257.42487798]
[1741287583388,0.03,143.59,143.58,257.14055484]
[1741287583684,0.03,143.59,143.58,119.34055484]
[1741287583886,0.03,143.59,143.58,120.802581]
[1741287584783,24.3615,143.67,143.58,120.802581]
[1741287585085,24.3615,143.67,143.61,0.14216157]
[1741287585289,6.9603,143.67,143.62,18.44874441]
[1741287585603,20.0,143.67,143.61,412.69090598]
[1741287585903,24.3596,143.68,143.61,394.24216157]
[1741287586280,24.3596,143.68,143.61,82.24216157]
[1741287586493,20.0,143.65,143.61,82.24216157]
[1741287586692,20.0,143.65,143.59,6.64]
[1741287586693,20.0,143.63,143.59,6.64]
[1741287586893,20.0,143.63,143.59,0.14216157]
[1741287587288,20.0,143.63,143.58,82.1]
[1741287587680,20.0,143.63,143.59,0.14216157]
[1741287587881,24.65072314,143.64,143.59,0.14216157]
[1741287588081,6.1242,143.63,143.59,0.14216157]
[1741287590627,6.9628,143.62,143.59,0.14216157]
[1741287594813,20.0,143.62,143.59,0.14216157]
[1741287595016,13.1197,143.63,143.59,0.14216157]
[1741287595694,6.9955,143.63,143.59,0.14216157]
[1741287596020,0.033,143.63,143.59,0.14216157]
[1741287596395,0.033,143.63,143.59,109.31796283]
[1741287596815,0.033,143.63,143.59,127.76670724]
[1741287597203,0.033,143.63,143.61,0.14216157]
[1741287597416,0.033,143.63,143.59,1.4620524]
[1741287597615,0.033,143.63,143.58,82.1]
[1741287597921,0.033,143.63,143.59,0.14216157]
[1741287598915,20.033,143.63,143.59,0.14216157]
[1741287599121,6.9628,143.62,143.59,0.14216157]
[1741287599300,24.3698,143.62,143.59,0.14216157]
[1741287599891,24.3698,143.62,143.58,82.1]
[1741287599892,44.3698,143.62,143.58,82.1]
[1741287600102,24.3698,143.62,143.55,82.1]
[1741287600305,24.3698,143.62,143.56,0.14216157]
[1741287600514,24.3698,143.62,143.55,82.1]
[1741287600515,25.9628,143.62,143.55,82.1]
[1741287600723,25.9628,143.62,143.56,0.14216157]
[1741287601417,82.033,143.63,143.56,37.24055484]
[1741287601594,88.9955,143.63,143.58,0.14216157]
[1741287601795,6.9955,143.63,143.58,82.24216157]
[1741287602226,24.4013,143.63,143.58,82.24216157]
[1741287603094,17.4082,143.61,143.58,82.1]
[1741287603599,17.4082,143.61,143.59,0.03]
[1741287604111,1.92182314,143.59,143.5,258.56899327]
[1741287604304,1.92182314,143.59,143.5,108.94024886]
[1741287604522,1.92182314,143.59,143.5,394.1]
[1741287604818,1.92182314,143.59,143.51,0.14216157]
[1741287605208,24.3765,143.58,143.51,0.14216157]
[1741287605605,0.28432314,143.57,143.5,394.1]
[1741287606016,82.28432314,143.57,143.5,312.0]
[1741287606702,82.28432314,143.57,143.51,0.14216157]
[1741287607098,6.9676,143.52,143.48,82.1]
[1741287607294,6.9676,143.52,143.46,82.1]
[1741287608928,6.9676,143.52,143.47,0.14216157]
[1741287609313,20.0,143.52,143.47,0.14216157]
[1741287609525,14.6443,143.53,143.47,0.14216157]
[1741287609903,20.0,143.5,143.44,244.99874441]
[1741287610104,20.0,143.49,143.45,312.0]
[1741287610715,20.0,143.49,143.46,0.14216157]
[1741287610912,20.0,143.48,143.44,0.03]
[1741287611322,6.97,143.47,143.44,0.03]
[1741287611517,26.9697,143.48,143.44,0.03]
[1741287612502,0.28432314,143.47,143.44,0.03]
[1741287612701,6.3966,143.46,143.44,0.03]
[1741287613316,6.971,143.45,143.44,0.03]
[1741287614007,13.3673,143.46,143.44,0.03]
[1741287615114,6.3966,143.46,143.44,0.03]
[1741287615519,13.3672,143.46,143.44,0.03]
[1741287615927,6.3966,143.46,143.44,0.03]
[1741287616533,82.0,143.47,143.44,0.03]
[1741287616833,26.9696,143.48,143.44,0.03]
[1741287618927,0.28432314,143.47,143.44,0.03]